bitfinex/quotes_SOLUSD_20240620
["timestamp","ask_amount","ask_price","bid_price","bid_amount"]
[1718851109175,20.51,134.88,134.78,20.0]
[1718851109372,0.34,134.88,134.78,42.28]
[1718851109574,0.17,134.88,134.78,42.28]
[1718851110151,0.17,134.88,134.79,0.17]
[1718851110352,0.17,134.88,134.79,45.68]
[1718851110555,21.1583,134.89,134.81,0.17]
[1718851110777,21.1583,134.89,134.81,67.62]
[1718851110970,16.4996,134.89,134.83,22.35]
[1718851111158,16.4996,134.89,134.84,45.0]
[1718851113173,16.0661,134.92,134.87,0.17]
[1718851113361,20.1171,134.95,134.87,65.68]
[1718851114885,20.1171,134.95,134.87,87.96]
[1718851117772,20.1171,134.95,134.87,65.68]
[1718851119182,20.1171,134.95,134.87,87.96]
[1718851119369,7.4081,134.99,134.87,87.96]
[1718851119370,16.6332,134.98,134.91,0.17]
[1718851119569,16.6332,134.98,134.91,87.79]
[1718851119791,16.6332,134.98,134.92,44.63]
[1718851119980,16.5412,135.01,134.94,22.45]
[1718851120292,16.5412,135.01,134.96,0.17]
[1718851120980,16.5412,135.01,134.95,87.18]
[1718851123010,16.5412,135.01,134.96,0.17]
[1718851123978,16.5412,135.01,134.95,87.18]
[1718851125880,16.5412,135.01,134.95,65.0]
[1718851126075,16.5412,135.01,134.95,20.0]
[1718851126478,16.5412,135.01,134.93,20.0]
[1718851126789,16.5412,135.01,134.9,20.0]
[1718851127172,16.5412,135.01,134.91,22.28]
[1718851127389,16.5412,135.01,134.92,20.0]
[1718851127592,16.5412,135.01,134.93,45.0]
[1718851127790,16.5412,135.01,134.94,20.0]
[1718851128003,16.5412,135.01,134.95,45.0]
[1718851128203,0.34,135.0,134.93,45.0]
[1718851130302,0.17,134.99,134.93,45.0]
[1718851130494,0.34,134.99,134.93,45.0]
[1718851131016,20.0,135.0,134.93,45.0]
[1718851131302,16.5412,135.01,134.93,45.0]
[1718851132987,0.17,135.0,134.93,45.0]
[1718851133205,0.68,135.0,134.93,45.0]
[1718851133799,16.5412,135.01,134.93,45.0]
[1718851135000,0.17,135.0,134.93,45.0]
[1718851135185,0.68,135.0,134.93,45.0]
[1718851136201,0.68,135.0,134.89,50.9907]
[1718851136387,28.0876,135.0,134.9,20.0]
[1718851137117,7.408,134.99,134.9,20.0]
[1718851137287,0.51,134.98,134.9,20.0]
[1718851137486,0.17,134.97,134.9,20.0]
[1718851138428,0.17,134.97,134.91,45.0]
[1718851138904,0.17,134.97,134.9,20.0]
[1718851139798,21.1142,134.96,134.9,20.0]
[1718851140395,21.1142,134.96,134.86,36.0862]
[1718851140599,21.1142,134.96,134.87,65.17]
[1718851140986,21.1142,134.96,134.87,65.0]
[1718851141304,0.17,134.94,134.87,20.0]
[1718851141709,15.6479,134.93,134.87,20.0]
[1718851142007,0.17,134.92,134.83,20.0]
[1718851142194,0.34,134.92,134.83,20.0]
[1718851142611,4.6587,134.9,134.83,20.0]
[1718851142818,4.6587,134.9,134.82,22.18]
[1718851143108,0.51,134.89,134.79,22.18]
[1718851143802,0.17,134.89,134.79,44.46]
[1718851143988,4.6587,134.9,134.79,44.46]
[1718851144192,0.17,134.89,134.8,0.17]
[1718851144497,0.68,134.89,134.8,45.0]
[1718851144695,0.68,134.89,134.81,20.0]
[1718851144896,0.68,134.89,134.82,45.0]
[1718851145095,16.32,134.88,134.81,20.0]
[1718851145292,16.32,134.88,134.8,20.17]
[1718851146209,16.32,134.88,134.8,20.0]
[1718851146400,16.32,134.88,134.81,45.0]
[1718851146600,16.32,134.88,134.82,20.0]
[1718851146904,16.32,134.88,134.83,45.0]
[1718851147337,16.32,134.88,134.82,20.0]
[1718851147502,16.32,134.88,134.8,20.0]
[1718851147796,16.32,134.88,134.81,45.0]
[1718851147999,16.32,134.88,134.82,20.0]
[1718851148489,16.32,134.88,134.83,45.0]
[1718851148910,16.32,134.88,134.82,20.0]
[1718851149217,16.32,134.88,134.8,20.0]
[1718851149416,16.32,134.88,134.81,45.0]
[1718851149717,16.32,134.88,134.82,20.0]
[1718851149916,16.32,134.88,134.83,45.0]
[1718851150114,16.32,134.88,134.82,20.0]
[1718851150422,16.32,134.88,134.81,45.0]
[1718851150615,0.51,134.87,134.76,253.6]
[1718851150795,0.51,134.87,134.77,42.18]
[1718851150994,0.17,134.86,134.77,42.18]
[1718851151211,0.17,134.86,134.77,22.18]
[1718851152398,0.17,134.86,134.78,20.0]
[1718851153301,4.6587,134.85,134.78,20.0]
[1718851153501,0.34,134.84,134.78,20.0]
[1718851153704,0.34,134.84,134.77,22.18]
[1718851154584,0.34,134.84,134.74,37.9659]
[1718851154799,0.34,134.84,134.75,42.18]
[1718851155213,0.34,134.84,134.75,20.0]
[1718851156000,0.34,134.84,134.76,45.0]
[1718851156198,0.34,134.83,134.76,45.0]
[1718851157010,0.17,134.83,134.76,45.0]
[1718851158311,16.169,134.82,134.76,45.0]
[1718851158810,16.169,134.82,134.74,22.18]
[1718851159009,0.51,134.81,134.72,7.5854]
[1718851159200,0.51,134.81,134.73,20.0]
[1718851159406,4.6587,134.8,134.73,20.0]
[1718851159825,4.6587,134.8,134.71,20.0]
[1718851160118,0.34,134.79,134.71,20.0]
[1718851160296,16.3895,134.77,134.7,22.18]
[1718851160620,16.3895,134.77,134.67,61.1366]
[1718851160810,16.3895,134.77,134.67,37.5502]
[1718851161326,16.3895,134.77,134.67,59.8302]
[1718851161505,16.3895,134.77,134.7,22.18]
[1718851162294,16.3895,134.77,134.71,45.0]
[1718851164417,4.6587,134.8,134.72,0.34]
[1718851164723,16.4043,134.81,134.74,0.17]
[1718851164925,4.6587,134.84,134.76,22.35]
[1718851165227,16.4043,134.85,134.79,22.18]
[1718851165528,16.2414,134.89,134.8,0.34]
[1718851165822,16.2414,134.89,134.8,45.68]
[1718851166011,16.2414,134.89,134.8,87.96]
[1718851166721,16.2414,134.89,134.8,65.68]
[1718851167518,4.6587,134.91,134.83,0.17]
[1718851167718,15.9038,134.93,134.86,0.17]
[1718851167923,4.6587,134.96,134.86,65.34]
[1718851168111,24.6587,134.96,134.86,65.34]
[1718851169203,0.34,134.95,134.86,65.34]
[1718851169625,0.34,134.95,134.86,65.0]
[1718851169922,7.7501,134.95,134.86,65.0]
[1718851170522,0.34,134.95,134.86,65.0]
[1718851170723,0.17,134.94,134.86,65.0]
[1718851170917,0.34,134.94,134.86,65.0]
[1718851171509,0.34,134.95,134.86,65.0]
[1718851171807,15.9038,134.97,134.89,0.17]
[1718851172127,4.6587,135.0,134.89,87.96]
[1718851172317,4.6587,135.0,134.89,65.0]
[1718851172520,7.4094,134.97,134.89,45.0]
[1718851172820,7.4084,134.99,134.89,45.0]
[1718851173232,0.17,134.97,134.89,45.0]
[1718851173406,0.68,134.97,134.89,45.0]
[1718851174036,20.0,134.98,134.9,0.17]
[1718851174326,32.0665,135.0,134.89,45.0]
[1718851174529,24.6587,135.0,134.9,20.34]
[1718851174831,24.6587,135.0,134.91,45.0]
[1718851175611,0.17,134.99,134.91,45.0]
[1718851175818,0.34,134.99,134.91,45.0]
[1718851176729,15.9606,135.01,134.92,28.5903]
[1718851177028,4.6587,135.08,134.94,0.17]
[1718851177213,4.6587,135.08,134.97,0.17]
[1718851177534,4.6587,135.08,134.97,20.34]
[1718851177718,12.0617,135.08,134.97,20.34]
[1718851177923,7.4036,135.07,134.98,45.0]
[1718851178122,4.6587,135.08,134.98,45.0]
[1718851178322,7.405,135.05,134.98,45.0]
[1718851178519,7.4041,135.06,134.98,45.0]
[1718851178728,0.51,135.05,134.98,45.0]
[1718851178928,0.34,135.05,134.98,45.0]
[1718851179135,0.17,135.05,134.98,45.0]
[1718851179339,0.17,135.04,134.98,45.0]
[1718851179631,0.17,135.06,134.98,45.0]
[1718851179934,20.68,135.06,134.98,45.0]
[1718851180315,0.17,135.04,134.93,0.34]
[1718851180523,0.17,135.04,134.93,0.17]
[1718851180826,0.17,135.04,134.93,20.34]
[1718851181026,0.17,135.03,134.93,20.17]
[1718851181336,0.68,135.03,134.93,20.0]
[1718851181544,0.51,135.03,134.94,0.17]
[1718851182344,0.51,135.03,134.94,45.0]
[1718851182644,0.51,135.03,134.95,20.0]
[1718851182857,0.51,135.03,134.96,45.0]
[1718851183231,20.0,135.05,134.96,45.0]
[1718851183463,20.68,135.06,134.96,45.0]
[1718851184238,0.17,135.03,134.96,45.0]
[1718851184436,0.68,135.03,134.96,45.0]
[1718851187137,8.0857,135.03,134.96,45.0]
[1718851187342,0.68,135.03,134.96,45.0]
[1718851187732,0.17,135.01,134.92,6.1403]
[1718851187934,7.4095,134.97,134.9,15.1614]
[1718851188135,0.17,134.97,134.88,6.269]
[1718851188349,0.34,134.97,134.89,20.0]
[1718851188640,0.17,134.96,134.89,20.0]
[1718851188836,0.17,134.95,134.88,6.269]
[1718851189044,0.51,134.95,134.86,16.5566]
[1718851189544,0.17,134.94,134.86,16.5566]
[1718851190022,0.34,134.94,134.87,20.0]
[1718851190837,0.17,134.93,134.85,6.269]
[1718851191036,0.51,134.93,134.85,6.269]
[1718851191239,0.17,134.92,134.82,16.4785]
[1718851191439,0.17,134.91,134.83,20.0]
[1718851191733,0.51,134.91,134.78,20.0]
[1718851191944,0.17,134.9,134.79,20.0]
[1718851192149,0.17,134.89,134.77,22.28]
[1718851192338,20.51,134.89,134.78,2.971522]
[1718851192646,0.17,134.88,134.78,2.971522]
[1718851192948,0.17,134.87,134.76,404.68]
[1718851193144,0.51,134.87,134.75,6.1288]
[1718851193350,0.17,134.86,134.75,6.1288]
[1718851193545,0.51,134.86,134.76,20.0]
[1718851194038,20.0,134.88,134.76,22.28]
[1718851194232,0.17,134.88,134.76,22.28]
[1718851194432,0.34,134.88,134.77,0.34]
[1718851194650,0.34,134.88,134.78,0.34]
[1718851194651,0.34,134.87,134.78,0.34]
[1718851195026,0.34,134.87,134.77,45.0]
[1718851195245,0.34,134.86,134.75,28.4088]
[1718851195547,0.34,134.85,134.75,6.1288]
[1718851196332,0.34,134.85,134.75,28.4088]
[1718851196533,0.34,134.85,134.76,45.34]
[1718851197244,0.34,134.85,134.76,45.0]
[1718851197441,0.17,134.84,134.76,45.0]
[1718851197748,0.17,134.84,134.75,6.1288]
[1718851197945,0.17,134.84,134.76,20.0]
[1718851198146,0.34,134.84,134.76,20.0]
[1718851198446,0.34,134.83,134.76,20.0]
[1718851199345,0.34,134.83,134.75,6.1288]
[1718851199869,20.0,134.85,134.76,42.28]
[1718851200352,15.1438,134.86,134.76,42.28]
[1718851200740,15.1438,134.86,134.77,45.0]
[1718851201134,0.34,134.85,134.77,45.0]
[1718851203333,15.3138,134.86,134.77,45.0]
[1718851204435,0.34,134.85,134.77,45.0]
[1718851204641,0.34,134.84,134.77,45.0]
[1718851205041,0.34,134.84,134.71,7.4875706]
[1718851205042,7.5868,134.83,134.71,7.4875706]
[1718851205249,7.5868,134.83,134.71,6.1989]
[1718851205250,0.51,134.82,134.71,6.1989]
[1718851205550,20.51,134.82,134.72,20.0]
[1718851206356,0.17,134.81,134.72,20.0]
[1718851206555,7.5878,134.81,134.72,20.0]
[1718851206759,20.51,134.8,134.71,20.0]
[1718851207387,0.17,134.79,134.71,20.0]
[1718851207659,16.2964,134.78,134.69,20.0]
[1718851208163,4.6587,134.77,134.69,20.0]
[1718851208467,4.6587,134.77,134.68,20.0]
[1718851209761,0.17,134.76,134.68,20.0]
[1718851210352,0.34,134.76,134.68,20.0]
[1718851210857,0.34,134.76,134.67,20.0]
[1718851211058,0.34,134.75,134.67,20.0]
[1718851211252,0.34,134.75,134.62,259.8955]
[1718851211253,0.17,134.73,134.64,20.0]
[1718851211452,0.34,134.73,134.62,282.1755]
[1718851211667,0.34,134.72,134.62,282.1755]
[1718851211844,0.34,134.72,134.62,6.2955]
[1718851212257,0.34,134.71,134.58,13.19020387]
[1718851212567,16.2641,134.7,134.62,2.974938]
[1718851212739,0.17,134.69,134.58,28.5755]
[1718851213141,4.8287,134.69,134.58,28.5755]
[1718851213367,0.34,134.68,134.58,28.5755]
[1718851214272,0.34,134.68,134.58,6.2955]
[1718851214574,0.17,134.67,134.58,6.2955]
[1718851214765,0.17,134.67,134.59,20.0]
[1718851215145,0.34,134.68,134.59,20.0]
[1718851215347,0.34,134.67,134.59,20.0]
[1718851215668,0.34,134.66,134.57,20.0]
[1718851216047,0.51,134.65,134.56,20.0]
[1718851216255,0.34,134.64,134.56,20.0]
[1718851216449,0.34,134.64,134.55,20.0]
[1718851216976,0.34,134.63,134.53,7.4256]
[1718851217269,0.17,134.6,134.5,6.6526]
[1718851217443,0.68,134.6,134.51,20.0]
[1718851217847,0.68,134.6,134.5,28.9326]
[1718851218063,0.68,134.6,134.58,7.4303]
[1718851218255,0.68,134.6,134.59,7.4299]
[1718851218449,0.68,134.6,134.58,7.4304]
[1718851218972,0.68,134.6,134.56,7.4315]
[1718851219171,0.68,134.6,134.55,7.432]
[1718851219172,28.1098,134.6,134.55,7.432]
[1718851219853,20.68,134.6,134.58,7.4304]
[1718851220060,20.68,134.6,134.57,7.431]
[1718851220258,20.68,134.6,134.48,5.83284323]
[1718851220460,20.68,134.6,134.49,20.0]
[1718851220658,0.17,134.58,134.54,7.4322]
[1718851220856,0.51,134.58,134.48,20.0]
[1718851221055,0.17,134.57,134.53,7.4332]
[1718851221256,0.17,134.57,134.46,6.6145]
[1718851221257,0.17,134.56,134.49,1.48205551]
[1718851221459,0.51,134.56,134.47,21.48205551]
[1718851221668,0.17,134.55,134.54,7.4326]
[1718851221855,0.17,134.55,134.53,7.4331]
[1718851222055,0.17,134.55,134.54,7.4327]
[1718851222262,0.34,134.56,134.55,7.4321]
[1718851222473,0.51,134.56,134.55,7.4321]
[1718851223351,0.51,134.56,134.53,7.4328]
[1718851223554,0.34,134.55,134.53,7.4328]
[1718851223751,20.0,134.6,134.48,0.17]
[1718851223955,0.17,134.59,134.55,7.4318]
[1718851224467,0.17,134.59,134.55,7.4319]
[1718851225060,0.17,134.58,134.55,7.4319]
[1718851225655,20.0,134.6,134.57,7.4307]
[1718851225854,24.6587,134.61,134.48,0.34]
[1718851226067,32.0878,134.61,134.56,7.4312]
[1718851226768,24.6587,134.61,134.5,0.17]
[1718851226954,4.6587,134.61,134.51,0.17]
[1718851227150,0.34,134.6,134.51,0.17]
[1718851227457,0.17,134.6,134.57,7.4307]
[1718851227674,0.34,134.6,134.57,7.4307]
[1718851227969,4.6587,134.61,134.59,7.4298]
[1718851228173,4.6587,134.61,134.6,7.4294]
[1718851228381,4.6587,134.61,134.51,20.17]
[1718851228555,4.6587,134.61,134.58,7.4301]
[1718851229280,4.6587,134.61,134.58,7.4304]
[1718851229482,0.51,134.6,134.58,7.4304]
[1718851230068,0.51,134.6,134.59,7.4299]
[1718851230774,0.51,134.6,134.58,7.4303]
[1718851231655,0.51,134.6,134.59,7.4299]
[1718851231855,15.5087,134.62,134.51,42.45]
[1718851232077,15.5087,134.62,134.61,7.4288]
[1718851233062,16.4283,134.67,134.54,0.17]
[1718851233366,16.4283,134.67,134.64,7.4268]
[1718851233367,20.0,134.66,134.64,7.4268]
[1718851233770,16.4283,134.67,134.56,44.56]
[1718851233964,16.4283,134.67,134.59,0.17]
[1718851234160,16.3183,134.71,134.62,0.17]
[1718851234380,16.3183,134.71,134.62,45.17]
[1718851234587,16.3183,134.71,134.62,45.0]
[1718851234889,7.4254,134.68,134.58,6.4064]
[1718851235064,7.4256,134.67,134.59,65.0]
[1718851235271,7.4264,134.66,134.56,38.5323]
[1718851235482,0.34,134.65,134.57,45.0]
[1718851235682,0.17,134.64,134.57,45.0]
[1718851236570,20.0,134.66,134.57,45.0]
[1718851236766,0.34,134.67,134.58,0.17]
[1718851236981,20.0,134.7,134.58,20.0]
[1718851237170,7.4261,134.66,134.59,45.0]
[1718851237371,20.0,134.7,134.56,16.2523]
[1718851237372,7.4267,134.65,134.56,16.2523]
[1718851237570,7.4267,134.65,134.55,0.17]
[1718851237781,7.4263,134.66,134.55,20.17]
[1718851238086,7.5978,134.63,134.58,7.4303]
[1718851238296,16.0594,134.64,134.53,16.5899]
[1718851238297,0.17,134.61,134.53,16.5899]
[1718851238484,0.17,134.61,134.51,6.5424]
[1718851238485,0.34,134.61,134.51,6.5424]
[1718851238787,0.17,134.59,134.49,270.1899]
[1718851239087,0.34,134.59,134.56,7.4312]
[1718851239385,0.34,134.58,134.56,7.4312]
[1718851239884,0.34,134.58,134.49,16.5899]
[1718851240089,0.17,134.57,134.49,398.9899]
[1718851240383,0.17,134.57,134.55,7.4321]
[1718851241593,0.34,134.58,134.56,7.4312]
[1718851242083,0.34,134.58,134.49,398.9899]
[1718851242279,0.34,134.58,134.5,45.0]
[1718851242985,21.3754,134.57,134.47,6.5424]
[1718851243188,0.17,134.55,134.47,6.5424]
[1718851243491,0.51,134.55,134.52,7.4335]
[1718851243691,0.51,134.55,134.53,7.4332]
[1718851243692,0.17,134.55,134.53,7.4332]
[1718851243873,0.34,134.55,134.53,7.4332]
[1718851244591,0.34,134.55,134.47,6.5424]
[1718851244792,0.34,134.55,134.52,7.4336]
[1718851245201,0.34,134.55,134.51,7.434]
[1718851245380,0.17,134.54,134.51,7.434]
[1718851245584,0.51,134.54,134.52,7.4338]
[1718851245796,0.51,134.54,134.51,7.4341]
[1718851246094,0.51,134.54,134.49,7.435]
[1718851246095,0.17,134.53,134.49,7.435]
[1718851246479,0.51,134.53,134.49,7.435]
[1718851246679,0.17,134.52,134.49,7.435]
[1718851246891,0.51,134.52,134.49,7.435]
[1718851247078,0.51,134.52,134.5,7.4348]
[1718851248688,0.17,134.51,134.43,6.117]
[1718851248894,0.51,134.51,134.47,7.4362]
[1718851249200,0.17,134.5,134.47,7.4364]
[1718851249403,0.17,134.49,134.47,7.4364]
[1718851249696,0.51,134.49,134.46,7.4369]
[1718851250070,0.51,134.49,134.41,15.2368]
[1718851250278,0.17,134.48,134.4,26.2155]
[1718851250575,0.51,134.48,134.44,7.4379]
[1718851250775,0.51,134.48,134.45,7.4375]
[1718851251779,0.51,134.48,134.4,26.2155]
[1718851251997,0.51,134.48,134.45,7.4374]
[1718851253079,0.51,134.48,134.41,45.0]
[1718851253279,0.34,134.48,134.47,7.4366]
[1718851253501,0.34,134.48,134.46,7.4369]
[1718851253994,0.34,134.48,134.45,7.4376]
[1718851254500,0.34,134.48,134.41,45.0]
[1718851254904,0.34,134.48,134.46,7.4368]
[1718851255482,0.34,134.48,134.41,45.0]
[1718851255683,0.34,134.48,134.45,7.4372]
[1718851256190,0.34,134.48,134.46,7.4371]
[1718851256597,20.0,134.49,134.46,7.4367]
[1718851256800,28.1448,134.53,134.48,7.4359]
[1718851257098,20.0,134.52,134.49,7.4353]
[1718851257302,20.0,134.52,134.48,7.4358]
[1718851257503,20.0,134.52,134.5,7.4348]
[1718851257682,20.0,134.52,134.42,22.33]
[1718851257883,27.4338,134.52,134.47,7.4363]
[1718851258105,0.51,134.51,134.47,7.4363]
[1718851258894,0.17,134.51,134.42,44.61]
[1718851259082,20.0,134.52,134.49,7.4351]
[1718851259286,20.0,134.52,134.48,7.4358]
[1718851259482,20.0,134.52,134.49,7.4354]
[1718851259883,20.0,134.52,134.48,7.4358]
[1718851260288,0.17,134.5,134.46,7.4368]
[1718851260592,0.34,134.5,134.48,7.4359]
[1718851260792,0.51,134.51,134.48,7.4359]
[1718851260996,0.51,134.51,134.47,7.4363]
[1718851261197,0.17,134.5,134.46,7.4367]
[1718851261704,16.0528,134.53,134.41,0.17]
[1718851261884,16.0528,134.53,134.49,7.4351]
[1718851262091,16.0528,134.53,134.45,0.17]
[1718851262291,16.0528,134.53,134.49,7.4353]
[1718851263309,0.17,134.52,134.49,7.4353]
[1718851265019,0.34,134.52,134.48,7.4359]
[1718851265221,0.17,134.51,134.41,15.967]
[1718851265417,7.6044,134.51,134.46,7.4367]
[1718851265713,20.34,134.5,134.46,7.4367]
[1718851265919,0.17,134.49,134.46,7.4367]
[1718851266305,0.17,134.49,134.47,7.4365]
[1718851266614,7.7756,134.49,134.41,15.967]
[1718851266800,7.7756,134.49,134.4,6.2155]
[1718851266801,0.34,134.48,134.43,7.4388]
[1718851267000,0.34,134.48,134.44,7.4382]
[1718851267202,0.17,134.47,134.44,7.4382]
[1718851267437,7.7766,134.47,134.42,7.439]
[1718851267617,0.17,134.45,134.41,7.4394]
[1718851267917,0.34,134.45,134.41,7.4394]
[1718851268107,0.17,134.44,134.41,7.4394]
[1718851268288,0.17,134.44,134.4,7.4403]
[1718851268490,0.17,134.43,134.33,28.8981]
[1718851268691,20.51,134.43,134.39,7.4407]
[1718851268908,0.17,134.42,134.4,7.4404]
[1718851269110,0.51,134.42,134.39,7.4407]
[1718851269891,0.17,134.42,134.4,7.4404]
[1718851270100,0.34,134.43,134.41,7.4399]
[1718851270305,0.34,134.43,134.4,7.4402]
[1718851270505,0.34,134.43,134.41,7.4397]
[1718851271007,15.7777,134.46,134.41,7.4395]
[1718851271216,15.7777,134.46,134.4,7.4402]
[1718851271405,7.4378,134.45,134.4,7.4402]
[1718851271796,7.4383,134.44,134.39,7.4408]
[1718851272117,7.4405,134.4,134.35,7.4431]
[1718851272304,0.34,134.39,134.36,7.4425]
[1718851272500,0.17,134.39,134.36,7.4422]
[1718851272699,0.17,134.39,134.37,7.442]
[1718851273297,0.17,134.39,134.36,7.4424]
[1718851274310,20.34,134.4,134.37,7.4419]
[1718851274513,0.17,134.39,134.35,7.4432]
[1718851274819,0.34,134.39,134.35,7.4432]
[1718851274991,0.34,134.38,134.35,7.4432]
[1718851275196,0.34,134.38,134.34,7.4435]
[1718851275398,0.17,134.37,134.34,7.4435]
[1718851275804,0.34,134.37,134.32,7.4443]
[1718851276002,0.34,134.36,134.32,7.4443]
[1718851276414,0.17,134.35,134.32,7.4443]
[1718851276823,20.0,134.37,134.27,38.8029]
[1718851277000,20.0,134.39,134.37,7.4417]
[1718851277196,20.0,134.39,134.29,44.7]
[1718851277397,27.4992,134.45,134.4,7.4403]
[1718851277601,27.4992,134.45,134.32,22.5]
[1718851277602,20.0,134.44,134.39,7.4407]
[1718851277900,20.0,134.44,134.32,22.5]
[1718851278119,20.0,134.44,134.37,7.4416]
[1718851278312,7.4394,134.42,134.37,7.4416]
[1718851278706,0.17,134.41,134.37,7.4416]
[1718851278908,0.68,134.41,134.37,7.4416]
[1718851279105,0.17,134.38,134.31,6.65]
[1718851279412,0.51,134.38,134.34,7.4435]
[1718851279611,0.17,134.37,134.34,7.4435]
[1718851279828,0.17,134.38,134.31,6.65]
[1718851280028,0.17,134.38,134.36,7.4422]
[1718851280327,0.17,134.38,134.31,6.65]
[1718851280532,20.0,134.41,134.31,6.65]
[1718851280533,20.0,134.41,134.32,45.0]
[1718851280830,20.0,134.41,134.33,38.5229]
[1718851281041,20.0,134.44,134.34,45.0]
[1718851281223,27.4382,134.44,134.39,7.4407]
[1718851281526,27.4382,134.44,134.38,7.4413]
[1718851281735,27.4382,134.44,134.39,7.4409]
[1718851281939,0.68,134.43,134.39,7.4409]
[1718851282231,0.68,134.43,134.39,7.4407]
[1718851282930,5.8623393,134.46,134.34,45.0]
[1718851282931,5.8623393,134.46,134.36,0.17]
[1718851283140,20.5126,134.48,134.36,116.7661]
[1718851283445,16.0038,134.51,134.45,7.4374]
[1718851283613,16.0038,134.51,134.44,7.4382]
[1718851283813,7.4371,134.46,134.38,15.7194]
[1718851284033,7.4367,134.47,134.41,7.4395]
[1718851284331,7.4361,134.48,134.42,7.4392]
[1718851284538,7.4361,134.48,134.38,15.7194]
[1718851284726,0.17,134.47,134.38,15.7194]
[1718851285035,0.68,134.47,134.38,15.7194]
[1718851285233,20.68,134.47,134.43,7.4383]
[1718851285529,20.68,134.47,134.39,45.0]
[1718851285530,20.0,134.46,134.44,7.4381]
[1718851285708,0.17,134.47,134.44,7.4381]
[1718851285908,0.17,134.47,134.39,45.0]
[1718851286132,7.607,134.47,134.42,7.4393]
[1718851286309,7.607,134.47,134.39,45.0]
[1718851286310,0.17,134.47,134.43,7.4385]
[1718851286511,20.17,134.47,134.44,7.4382]
[1718851286718,0.34,134.46,134.43,7.4386]
[1718851286926,0.34,134.45,134.43,7.4386]
[1718851287233,0.17,134.49,134.45,7.4374]
[1718851287534,0.34,134.49,134.45,7.4374]
[1718851287924,7.7756,134.49,134.44,7.438]
[1718851288114,0.34,134.49,134.41,7.4394]
[1718851288435,0.34,134.49,134.42,7.4393]
[1718851288436,7.4369,134.47,134.42,7.4393]
[1718851288732,20.68,134.46,134.41,7.4396]
[1718851289134,28.1175,134.46,134.41,7.4396]
[1718851289318,7.4382,134.44,134.39,7.4406]
[1718851289632,0.51,134.43,134.39,7.4406]